bitfinex/quotes_SOLUSD_20240827
["timestamp","ask_amount","ask_price","bid_price","bid_amount"]
[1724789103471,50.0,155.42,155.37,12.76650443]
[1724789105597,50.0,155.42,155.35,3.35861784]
[1724789105598,50.0,155.42,155.35,12.76650443]
[1724789105795,50.0,155.42,155.36,65.12549]
[1724789106005,50.0,155.4,155.36,20.12549]
[1724789106173,50.0,155.4,155.36,0.12549]
[1724789107297,50.0,155.37,155.32,5.94261891]
[1724789107491,50.0,155.39,155.33,12.76650443]
[1724789108100,56.1919,155.41,155.33,12.76650443]
[1724789108277,56.1919,155.41,155.35,12.76650443]
[1724789108606,56.1919,155.41,155.36,1.28711554]
[1724789108807,56.1919,155.41,155.36,46.28711554]
[1724789109477,56.1919,155.41,155.36,45.0]
[1724789110699,56.1919,155.41,155.35,12.89199443]
[1724789110889,56.1919,155.41,155.36,20.0]
[1724789111098,50.0,155.39,155.35,0.12549]
[1724789111291,50.0,155.39,155.34,65.25098]
[1724789111490,50.0,155.37,155.34,20.0]
[1724789111712,50.0,155.37,155.32,5.94261891]
[1724789111892,50.0,155.37,155.33,20.0]
[1724789112398,50.0,155.37,155.32,20.0]
[1724789112895,50.0,155.37,155.33,0.12549]
[1724789113215,50.0,155.37,155.32,20.0]
[1724789114009,50.0,155.35,155.32,20.0]
[1724789114217,50.0,155.35,155.3,20.0]
[1724789115316,50.0,155.35,155.31,45.12549]
[1724789115614,50.0,155.35,155.31,57.89199443]
[1724789120814,50.0,155.35,155.31,12.76650443]
[1724789120988,56.6479,155.35,155.28,5.94261891]
[1724789121185,50.0,155.33,155.28,5.94261891]
[1724789121514,50.0,155.33,155.27,12.76650443]
[1724789122515,50.0,155.33,155.28,0.12549]
[1724789122685,50.0,155.33,155.28,45.12549]
[1724789123716,50.0,155.33,155.29,12.76650443]
[1724789124693,50.0,155.29,155.24,18.70912334]
[1724789124887,50.0,155.29,155.24,12.76650443]
[1724789125998,50.0,155.29,155.25,45.12549]
[1724789129219,50.0,155.31,155.26,12.89199443]
[1724789130009,50.0,155.31,155.28,12.76650443]
[1724789131027,50.0,155.33,155.3,12.76650443]
[1724789131896,56.6479,155.35,155.3,12.76650443]
[1724789132100,56.6479,155.35,155.29,0.12549]
[1724789132101,56.6479,155.35,155.32,12.76650443]
[1724789132421,6.6479,155.35,155.32,12.76650443]
[1724789134725,56.6479,155.35,155.32,12.76650443]
[1724789138004,56.6479,155.35,155.3,12.76650443]
[1724789138200,50.0,155.33,155.28,12.76650443]
[1724789138405,50.0,155.31,155.28,12.76650443]
[1724789139029,50.0,155.31,155.26,12.76650443]
[1724789139748,50.0,155.31,155.27,20.0]
[1724789141335,50.0,155.31,155.25,12.76650443]
[1724789141826,50.0,155.29,155.23,12.76650443]
[1724789142829,50.0,155.29,155.25,12.76650443]
[1724789143835,50.0,155.31,155.26,1.28811256]
[1724789144036,50.0,155.31,155.26,1.41360256]
[1724789145909,50.0,155.31,155.26,0.12549]
[1724789152428,50.0,155.31,155.25,12.76650443]
[1724789152839,50.0,155.29,155.24,0.12549]
[1724789153017,50.0,155.29,155.23,58.01748443]
[1724789153216,50.0,155.29,155.24,20.0]
[1724789153437,50.0,155.29,155.25,45.12549]
[1724789155034,50.0,155.29,155.24,20.0]
[1724789155548,50.0,155.27,155.21,12.76650443]
[1724789155846,50.0,155.27,155.22,20.0]
[1724789157230,50.0,155.25,155.16,29.38426337]
[1724789157416,50.0,155.25,155.19,12.76650443]
[1724789158740,50.0,155.25,155.2,45.12549]
[1724789159927,50.0,155.25,155.2,0.12549]
[1724789160126,71.6508,155.25,155.2,20.12549]
[1724789160443,71.6508,155.25,155.19,12.76650443]
[1724789160444,50.0,155.23,155.19,12.76650443]
[1724789160650,50.0,155.23,155.2,20.0]
[1724789160950,50.0,155.21,155.16,5.94261891]
[1724789161251,50.0,155.21,155.12,15.6315]
[1724789161252,50.0,155.21,155.15,12.76650443]
[1724789162225,50.0,155.21,155.16,20.0]
[1724789162423,50.0,155.21,155.17,0.12549]
[1724789162622,50.0,155.21,155.17,45.12549]
[1724789163944,50.0,155.21,155.17,57.89199443]
[1724789164440,50.0,155.23,155.19,12.76650443]
[1724789164830,50.0,155.21,155.17,57.89199443]
[1724789165024,50.0,155.21,155.18,20.0]
[1724789166449,50.0,155.21,155.17,45.12549]
[1724789166751,50.0,155.21,155.14,12.76650443]
[1724789167047,50.0,155.19,155.15,20.0]
[1724789167620,50.0,155.19,155.14,12.76650443]
[1724789167822,50.0,155.17,155.12,12.76650443]
[1724789169247,50.0,155.17,155.08,16.3832]
[1724789169545,50.0,155.17,155.12,12.76650443]
[1724789169725,50.0,155.17,155.13,20.0]
[1724789170342,50.0,155.17,155.12,12.76650443]
[1724789172447,50.0,155.17,155.14,12.76650443]
[1724789179344,50.0,155.17,155.12,12.76650443]
[1724789183261,50.0,155.17,155.14,12.76650443]
[1724789183432,71.9997,155.19,155.16,12.76650443]
[1724789185555,71.9997,155.19,155.14,12.76650443]
[1724789186456,50.0,155.17,155.14,12.76650443]
[1724789186658,50.0,155.17,155.13,0.12549]
[1724789186836,50.0,155.17,155.13,65.25098]
[1724789190131,50.0,155.17,155.14,12.76650443]
[1724789191432,50.0,155.17,155.13,65.25098]
[1724789191632,50.0,155.17,155.13,78.01748443]
[1724789194964,50.0,155.17,155.13,32.89199443]
[1724789195151,50.0,155.17,155.11,12.76650443]
[1724789195341,50.0,155.17,155.12,20.12549]
[1724789197166,50.0,155.15,155.12,20.0]
[1724789202765,50.0,155.17,155.12,20.0]
[1724789202967,71.9997,155.19,155.15,12.76650443]
[1724789203476,71.9997,155.19,155.17,12.76650443]
[1724789203978,71.9997,155.19,155.15,12.76650443]
[1724789205280,71.9997,155.19,155.14,0.12549]
[1724789205464,71.9997,155.19,155.13,12.89199443]
[1724789205664,50.0,155.16,155.13,0.12549]
[1724789205849,50.0,155.16,155.11,12.76650443]
[1724789206049,50.0,155.16,155.12,65.25098]
[1724789208363,50.0,155.14,155.08,12.76650443]
[1724789209656,50.0,155.14,155.09,20.0]
[1724789209860,50.0,155.14,155.09,65.0]
[1724789210763,56.4635,155.14,155.09,45.0]
[1724789210977,72.2488,155.14,155.09,45.0]
[1724789211280,72.2488,155.14,155.08,12.89199443]
[1724789211462,50.0,155.12,155.03,3.36561991]
[1724789211665,50.0,155.12,155.06,12.76650443]
[1724789211871,50.0,155.12,155.07,1.61569388]
[1724789212179,50.0,155.12,155.08,1.61569388]
[1724789212348,50.0,155.12,155.09,1.61569388]
[1724789212555,50.0,155.12,155.1,1.61569388]
[1724789212788,50.0,155.1,155.06,12.76650443]
[1724789212955,50.0,155.1,155.07,1.61599661]
[1724789213151,50.0,155.1,155.08,1.61599661]
[1724789213354,50.0,155.1,155.06,12.76650443]
[1724789213577,50.0,155.1,155.07,1.61600423]
[1724789213761,50.0,155.1,155.08,1.61607301]
[1724789214086,50.0,155.1,155.06,12.76650443]
[1724789214380,50.0,155.1,155.07,1.61607324]
[1724789214683,50.0,155.1,155.06,12.76650443]
[1724789214881,50.0,155.1,155.07,1.61609772]
[1724789215059,50.0,155.1,155.06,12.76650443]
[1724789216484,50.0,155.08,155.05,12.76650443]
[1724789217864,50.0,155.03,155.0,16.13337518]
[1724789218966,71.8308,155.07,155.02,12.76650443]
[1724789219167,71.8308,155.07,155.04,12.76650443]
[1724789220554,50.0,155.09,155.06,12.76650443]
[1724789225683,50.0,155.11,155.08,12.76650443]
[1724789225866,6.4441,155.19,155.08,12.76650443]
[1724789225867,50.0,155.13,155.08,12.76650443]
[1724789226073,50.0,155.13,155.1,12.76650443]
[1724789226597,1.12343426,155.14,155.1,12.76650443]
[1724789226598,50.0,155.11,155.1,12.76650443]
[1724789227191,50.0,155.11,155.08,12.76650443]
[1724789229367,50.0,155.13,155.1,12.76650443]
[1724789229565,71.9436,155.15,155.12,12.76650443]
[1724789231771,56.1294,155.15,155.12,12.76650443]
[1724789234170,50.0,155.17,155.14,12.76650443]
[1724789235596,71.7321,155.19,155.15,0.12549]
[1724789238003,71.7321,155.19,155.16,12.76650443]
[1724789239882,50.0,155.21,155.18,12.76650443]
[1724789247079,50.0,155.21,155.18,12.7447611]
[1724789250404,50.0,155.22,155.15,0.12549]
[1724789250709,50.0,155.22,155.16,12.76650443]
[1724789250931,50.0,155.22,155.17,0.12549]
[1724789255892,50.0,155.22,155.18,12.76650443]
[1724789256206,50.0,155.22,155.19,0.12549]
[1724789259010,50.0,155.22,155.18,12.76650443]
[1724789260396,50.0,155.22,155.19,0.12549]
[1724789261905,50.0,155.22,155.18,12.76650443]
[1724789267902,1.12283631,155.24,155.19,0.12549]
[1724789267903,51.12283631,155.24,155.19,0.12549]
[1724789269194,51.12283631,155.24,155.19,45.12549]
[1724789270295,51.12283631,155.24,155.19,0.12549]
[1724789280702,1.12283631,155.24,155.22,12.76650443]
[1724789280901,50.0,155.27,155.22,12.76650443]
[1724789289734,50.0,155.25,155.21,0.12549]
[1724789290039,50.0,155.25,155.2,15.8446]
[1724789299554,50.0,155.23,155.17,19.09580443]
[1724789299737,50.0,155.23,155.18,1.6150784]
[1724789300044,50.0,155.23,155.17,12.76650443]
[1724789300232,50.0,155.23,155.18,1.61513041]
[1724789300446,50.0,155.23,155.17,12.76650443]
[1724789300616,50.0,155.23,155.18,1.61513041]
[1724789300818,50.0,155.23,155.19,0.12549]
[1724789301029,50.0,155.23,155.18,45.25098]
[1724789304047,50.0,155.21,155.16,15.6115]
[1724789304225,50.0,155.21,155.17,1.61521146]
[1724789304422,50.0,155.21,155.16,28.37800443]
[1724789304624,50.0,155.21,155.17,1.61521216]
[1724789304937,50.0,155.21,155.16,12.76650443]
[1724789305125,50.0,155.21,155.17,1.61521677]
[1724789305320,50.0,155.21,155.16,12.76650443]
[1724789305546,50.0,155.19,155.17,1.61523487]
[1724789305867,50.0,155.19,155.15,20.0]
[1724789306024,50.0,155.19,155.16,1.61525367]
[1724789306226,50.0,155.19,155.14,20.0]
[1724789306533,50.0,155.19,155.15,1.61528866]
[1724789306735,50.0,155.19,155.16,1.61528866]
[1724789306928,50.0,155.19,155.14,20.0]
[1724789307119,50.0,155.19,155.15,1.74078692]
[1724789307323,50.0,155.19,155.16,1.61529692]
[1724789307639,50.0,155.19,155.15,0.12549]
[1724789308150,50.0,155.19,155.16,1.61528446]
[1724789308340,50.0,155.19,155.15,0.12549]
[1724789308542,50.0,155.19,155.16,1.6152928]
[1724789308746,50.0,155.19,155.15,12.89199443]
[1724789308942,50.0,155.19,155.16,1.61528246]
[1724789309160,50.0,155.19,155.15,12.89199443]
[1724789309448,50.0,155.19,155.16,1.61528246]
[1724789309760,50.0,155.19,155.15,12.89199443]
[1724789310058,50.0,155.19,155.16,1.61528246]
[1724789310349,50.0,155.19,155.15,12.89199443]
[1724789310520,50.0,155.19,155.16,1.61528246]
[1724789310716,50.0,155.19,155.15,12.89199443]
[1724789310934,50.0,155.19,155.16,1.61527365]
[1724789311147,50.0,155.19,155.15,12.89199443]
[1724789311318,50.0,155.19,155.16,1.61528223]
[1724789311521,50.0,155.21,155.15,12.89199443]
[1724789311741,50.0,155.21,155.16,1.61528203]
[1724789311941,50.0,155.21,155.16,1.28883779]
[1724789312138,50.0,155.21,155.16,46.28883779]
[1724789313549,50.0,155.21,155.16,45.0]
[1724789313863,50.0,155.21,155.16,46.28880176]
[1724789316255,50.0,155.21,155.16,45.0]
[1724789324546,50.0,155.19,155.15,0.12549]
[1724789324754,50.0,155.19,155.15,45.12549]
[1724789325059,50.0,155.19,155.16,1.61528506]
[1724789325262,50.0,155.19,155.15,45.12549]
[1724789325452,50.0,155.19,155.16,1.61527849]
[1724789325657,50.0,155.19,155.15,45.12549]
[1724789325849,50.0,155.19,155.16,1.61527845]
[1724789326053,50.0,155.19,155.15,45.12549]
[1724789329467,50.0,155.19,155.16,1.61528518]
[1724789329668,50.0,155.19,155.15,45.12549]
[1724789329846,50.0,155.19,155.16,1.61527128]
[1724789330044,50.0,155.19,155.15,45.12549]
[1724789330346,50.0,155.19,155.16,1.61526655]
[1724789330573,50.0,155.19,155.15,45.12549]
[1724789330875,50.0,155.19,155.16,1.61526676]
[1724789331169,50.0,155.19,155.15,45.12549]
[1724789331372,50.0,155.19,155.16,1.61528295]
[1724789331550,50.0,155.19,155.15,45.12549]
[1724789331747,50.0,155.19,155.16,1.61527437]
[1724789331960,50.0,155.19,155.15,45.12549]
[1724789332162,50.0,155.19,155.16,1.61528292]
[1724789332472,50.0,155.19,155.15,45.12549]
[1724789332674,50.0,155.19,155.16,1.61528315]
[1724789332882,50.0,155.19,155.15,45.12549]
[1724789333175,50.0,155.19,155.16,1.61528383]
[1724789333382,50.0,155.19,155.15,45.12549]
[1724789336263,50.0,155.19,155.16,1.61527986]
[1724789336574,50.0,155.19,155.15,45.12549]
[1724789337371,50.0,155.19,155.12,15.9762]
[1724789337583,50.0,155.17,155.11,12.76650443]
[1724789337758,50.0,155.17,155.12,23.36510665]
[1724789338073,50.0,155.17,155.12,20.0]
[1724789338974,50.0,155.17,155.13,0.12549]
[1724789344083,50.0,155.17,155.13,12.89199443]
[1724789345955,50.0,155.19,155.13,12.89199443]
[1724789346960,50.0,155.19,155.13,14.1810098]
[1724789347288,50.0,155.19,155.14,45.0]
[1724789352865,50.0,155.19,155.13,59.1810098]
[1724789354483,50.0,155.19,155.13,57.89199443]
[1724789357059,50.0,155.19,155.14,1.41439359]
[1724789357264,50.0,155.19,155.15,0.12549]
[1724789357466,50.0,155.19,155.15,12.89199443]
[1724789359401,50.0,155.21,155.15,12.89199443]
[1724789359685,50.0,155.23,155.18,12.76650443]
[1724789359864,50.0,155.23,155.19,0.12549]
[1724789360284,50.0,155.23,155.19,45.25098]
[1724789360485,50.0,155.27,155.21,12.76650443]
[1724789360689,72.0644,155.29,155.24,12.76650443]
[1724789360903,22.0644,155.29,155.25,0.12549]
[1724789361187,50.0,155.31,155.26,12.76650443]
[1724789363904,50.0,155.31,155.25,0.12549]
[1724789364087,50.0,155.29,155.25,0.12549]
[1724789364295,50.0,155.29,155.24,45.25098]
[1724789372517,50.0,155.29,155.25,12.76650443]
[1724789375027,50.0,155.31,155.26,0.12549]
[1724789375324,50.0,155.31,155.26,45.25098]
[1724789375700,50.0,155.29,155.26,0.12549]
[1724789375903,50.0,155.29,155.23,12.76650443]
[1724789376105,50.0,155.29,155.24,45.25098]
[1724789381930,50.0,155.27,155.21,12.76650443]
[1724789382121,50.0,155.27,155.22,20.12549]
[1724789382419,50.0,155.27,155.2,16.484]
[1724789382626,50.0,155.27,155.2,29.25050443]
[1724789383949,50.0,155.27,155.21,65.25098]
[1724789392314,50.0,155.27,155.21,66.53934925]
[1724789392618,50.0,155.27,155.21,65.25098]
[1724789393410,50.0,155.25,155.19,12.76650443]
[1724789393607,50.0,155.25,155.2,65.25098]
[1724789399328,50.0,155.25,155.2,45.25098]
[1724789400044,50.0,155.25,155.2,0.12549]
[1724789400230,50.0,155.25,155.18,12.76650443]
[1724789400415,50.0,155.25,155.19,65.25098]
[1724789401239,50.0,155.25,155.2,12.76650443]
[1724789401421,50.0,155.25,155.21,45.25098]
[1724789404727,50.0,155.25,155.21,0.12549]
[1724789404926,50.0,155.25,155.2,12.76650443]
[1724789405635,50.0,155.25,155.19,20.12549]
[1724789405838,50.0,155.25,155.2,0.12549]
[1724789406036,50.0,155.23,155.19,20.0]
[1724789406343,50.0,155.23,155.18,12.76650443]
[1724789408650,50.0,155.21,155.17,0.12549]
[1724789408946,50.0,155.21,155.17,65.25098]
[1724789422544,22.2419,155.23,155.18,12.76650443]
[1724789422756,72.2419,155.23,155.19,45.25098]
[1724789424157,13.88913092,155.28,155.2,12.76650443]
[1724789424158,50.0,155.25,155.2,12.76650443]
[1724789424373,71.864,155.27,155.21,45.25098]
[1724789424659,71.864,155.27,155.21,46.53937526]
[1724789425040,1.12252785,155.26,155.21,46.53937526]
[1724789425986,1.12252785,155.26,155.21,45.25098]
[1724789427040,50.0,155.23,155.18,12.76650443]
[1724789427364,50.0,155.23,155.19,65.25098]
[1724789427542,50.0,155.25,155.19,65.25098]
[1724789427751,50.0,155.25,155.2,12.76650443]
[1724789427946,50.0,155.25,155.21,0.12549]
[1724789428762,50.0,155.25,155.2,0.12549]
[1724789429070,50.0,155.21,155.14,12.76650443]
[1724789429239,50.0,155.21,155.15,4.97966964]
[1724789429562,50.0,155.21,155.14,12.76650443]
[1724789429760,50.0,155.21,155.15,1.61535626]
[1724789429959,50.0,155.21,155.14,12.76650443]
[1724789430161,50.0,155.21,155.15,1.61536264]
[1724789430368,50.0,155.21,155.16,0.12549]
[1724789435048,21.4385,155.22,155.16,0.12549]
[1724789435248,21.4385,155.22,155.17,12.76650443]
[1724789435452,21.4385,155.22,155.18,0.12549]
[1724789439373,21.4385,155.22,155.18,45.12549]
[1724789440270,21.4385,155.22,155.18,0.12549]
[1724789440575,50.0,155.21,155.15,32.89199443]
[1724789440772,50.0,155.21,155.16,45.12549]
[1724789445181,50.0,155.19,155.15,20.12549]
[1724789445477,50.0,155.19,155.13,23.36499065]
[1724789445661,50.0,155.19,155.14,1.61546186]
[1724789445858,50.0,155.19,155.15,1.61546186]
[1724789446060,50.0,155.19,155.13,20.0]
[1724789446260,50.0,155.19,155.14,1.61542621]
[1724789446454,50.0,155.19,155.15,1.61542621]
[1724789446660,50.0,155.19,155.14,12.76650443]
[1724789446867,50.0,155.21,155.15,21.86640047]
[1724789447163,50.0,155.21,155.16,45.0]
[1724789448978,50.0,155.21,155.16,57.76650443]
[1724789449562,50.0,155.21,155.17,1.28880591]
[1724789451193,50.0,155.21,155.16,57.76650443]
[1724789451361,50.0,155.21,155.17,0.25098]
[1724789454481,50.0,155.21,155.16,45.0]
[1724789458976,50.0,155.21,155.15,20.12549]
[1724789459175,50.0,155.21,155.16,0.12549]
[1724789459372,50.0,155.19,155.16,0.12549]
[1724789459574,50.0,155.19,155.15,20.0]
[1724789460076,50.0,155.19,155.14,0.12549]
[1724789460279,50.0,155.19,155.15,1.61543606]
[1724789460488,50.0,155.19,155.13,78.01748443]
[1724789460696,50.0,155.19,155.14,4.98041093]
[1724789460872,50.0,155.19,155.15,1.61543734]
[1724789461071,50.0,155.19,155.13,78.01748443]
[1724789461273,50.0,155.19,155.14,4.98032966]
[1724789461572,50.0,155.19,155.15,1.61541557]
[1724789461771,50.0,155.19,155.13,78.01748443]
[1724789461981,50.0,155.19,155.14,4.98032766]
[1724789462179,50.0,155.19,155.15,1.61541504]
[1724789462490,50.0,155.19,155.13,78.01748443]
[1724789462670,50.0,155.19,155.14,4.98039374]
[1724789462868,50.0,155.19,155.15,1.61543274]
[1724789463069,50.0,155.19,155.13,78.01748443]
[1724789463269,50.0,155.19,155.14,4.98050113]
[1724789463564,50.0,155.19,155.15,1.6154615]
[1724789463784,50.0,155.19,155.13,78.01748443]
[1724789463981,50.0,155.19,155.14,1.6154615]
[1724789464187,50.0,155.19,155.15,1.6154615]
[1724789464476,50.0,155.19,155.13,78.01748443]
[1724789464791,50.0,155.19,155.14,1.61545575]
[1724789464973,50.0,155.19,155.15,1.61545575]
[1724789465173,50.0,155.19,155.13,78.01748443]
[1724789465375,50.0,155.19,155.14,1.61546476]
[1724789465697,50.0,155.19,155.15,1.61546476]
[1724789465996,50.0,155.19,155.13,78.01748443]
[1724789466368,50.0,155.19,155.14,1.61546476]
[1724789466699,50.0,155.19,155.15,1.61546476]
[1724789466878,50.0,155.19,155.13,78.01748443]
[1724789467200,50.0,155.19,155.14,1.61542185]
[1724789467378,50.0,155.19,155.15,1.61542185]
[1724789467577,50.0,155.19,155.13,78.01748443]
[1724789467786,50.0,155.19,155.14,1.61545618]
[1724789467987,50.0,155.19,155.15,1.61545618]
[1724789468283,50.0,155.19,155.13,78.01748443]
[1724789468481,50.0,155.19,155.14,1.61542185]
[1724789468770,50.0,155.19,155.15,1.61542185]
[1724789468970,50.0,155.19,155.13,78.01748443]
[1724789469273,50.0,155.19,155.14,1.61545618]
[1724789469469,50.0,155.19,155.15,1.61545618]
[1724789469691,50.0,155.19,155.13,78.01748443]
[1724789469902,50.0,155.19,155.14,1.61544759]
[1724789470197,50.0,155.16,155.09,12.76650443]
[1724789470400,50.0,155.16,155.1,8.88584392]
[1724789470696,50.0,155.16,155.11,1.61568631]
[1724789470875,50.0,155.16,155.12,1.61568631]
[1724789471076,50.0,155.16,155.09,12.76650443]
[1724789471276,50.0,155.16,155.1,21.61588079]
[1724789471477,50.0,155.16,155.1,20.0]
[1724789471678,50.0,155.16,155.11,46.74136218]
[1724789471889,50.0,155.16,155.11,45.12549]
[1724789472286,50.0,155.16,155.11,57.89199443]
[1724789472594,71.8089,155.18,155.11,57.89199443]
[1724789476488,50.0,155.16,155.11,57.89199443]
[1724789481405,50.0,155.16,155.11,45.12549]
[1724789483103,71.8089,155.18,155.11,45.12549]
[1724789483701,71.8089,155.18,155.12,12.76650443]
[1724789483904,71.8089,155.18,155.13,0.12549]
[1724789484112,71.8089,155.18,155.13,45.25098]
[1724789485199,50.0,155.16,155.1,32.76650443]
[1724789485505,50.0,155.16,155.11,45.25098]
[1724789485687,50.0,155.16,155.11,0.12549]
[1724789486283,50.0,155.16,155.1,45.25098]
[1724789487705,50.0,155.14,155.1,45.12549]
[1724789489499,50.0,155.14,155.09,20.0]
[1724789492203,50.0,155.11,155.05,28.55940443]
[1724789492402,50.0,155.11,155.06,20.0]
[1724789492610,50.0,155.11,155.07,1.61601969]
[1724789492909,50.0,155.11,155.06,20.0]
[1724789493085,50.0,155.11,155.07,1.61602522]
[1724789493285,50.0,155.11,155.06,20.0]
[1724789493481,50.0,155.11,155.07,1.7415044]
[1724789493688,50.0,155.11,155.07,0.12549]
[1724789494992,50.0,155.11,155.06,20.0]
[1724789495194,50.0,155.11,155.07,1.61600605]
[1724789495494,50.0,155.11,155.07,12.76650443]
[1724789495710,50.0,155.11,155.08,20.0]
[1724789500017,71.4156,155.13,155.08,20.0]
[1724789500322,71.4156,155.13,155.09,12.76650443]
[1724789501103,50.0,155.15,155.09,12.76650443]
[1724789501303,50.0,155.15,155.09,14.05586248]
[1724789502910,50.0,155.15,155.09,12.76650443]
[1724789504017,50.0,155.15,155.11,12.76650443]
[1724789504709,72.87327322,155.17,155.11,14.05577151]
[1724789505010,256.7,155.22,155.15,12.76650443]
[1724789505011,50.0,155.19,155.15,12.76650443]
[1724789507504,71.7499,155.21,155.17,12.76650443]
[1724789507719,1.12304684,155.22,155.19,12.76650443]
[1724789507918,71.7499,155.25,155.19,12.76650443]
[1724789508090,71.7499,155.25,155.18,1.41422075]
[1724789508091,71.7499,155.25,155.21,12.76650443]
[1724789508419,50.0,155.27,155.21,12.76650443]
[1724789509888,50.0,155.25,155.2,0.12549]
[1724789510087,50.0,155.25,155.2,12.89199443]
[1724789515125,50.0,155.25,155.21,45.0]
[1724789527718,50.0,155.27,155.22,12.89199443]
[1724789534519,65.7644,155.29,155.22,12.89199443]
[1724789534741,50.0,155.29,155.24,12.76650443]
[1724789535632,50.0,155.27,155.22,12.89199443]
[1724789537826,50.0,155.25,155.22,12.76650443]
[1724789538838,0.06496443,155.23,155.22,12.76650443]
[1724789539038,0.06496443,155.23,155.22,32.76650443]
[1724789543250,0.06496443,155.23,155.22,32.76650443]
[1724789543741,0.06496443,155.23,155.22,20.0]
[1724789544149,0.06496443,155.23,155.21,20.12549]
[1724789544652,50.06496443,155.23,155.17,15.851]
[1724789544821,50.06496443,155.23,155.18,12.76650443]
[1724789546136,50.06496443,155.23,155.19,20.0]
[1724789547826,50.06496443,155.23,155.18,32.76650443]
[1724789560866,50.0,155.21,155.17,12.89199443]
[1724789561097,50.0,155.21,155.17,12.76650443]
[1724789566570,50.0,155.21,155.15,14.38178513]
[1724789566867,50.0,155.21,155.16,20.0]
[1724789571247,50.0,155.19,155.16,20.0]
[1724789572149,50.0,155.19,155.15,12.76650443]
[1724789575853,50.0,155.19,155.14,0.12549]
[1724789576098,50.0,155.19,155.14,20.12549]
[1724789576668,50.0,155.17,155.12,12.76650443]
[1724789576872,50.0,155.17,155.13,20.0]
[1724789577378,15.41,155.18,155.13,20.0]
[1724789577580,15.41,155.18,155.12,12.76650443]
[1724789577581,50.0,155.17,155.12,12.76650443]
[1724789577748,50.0,155.17,155.13,20.12549]
[1724789580479,15.41,155.18,155.14,12.76650443]
[1724789580661,50.0,155.19,155.16,12.76650443]
[1724789581072,15.41,155.22,155.18,12.76650443]
[1724789583981,15.41,155.22,155.17,0.12549]
[1724789584160,15.41,155.22,155.18,0.12549]
[1724789584363,15.41,155.22,155.17,65.25098]
[1724789584364,15.41,155.22,155.17,65.12549]
[1724789587678,15.41,155.22,155.17,20.0]
[1724789587867,50.0,155.2,155.17,20.0]
[1724789588071,50.0,155.2,155.16,0.12549]
[1724789588281,65.41,155.22,155.16,45.25098]
[1724789588779,65.41,155.22,155.17,20.0]
[1724789590282,50.0,155.2,155.17,20.0]
[1724789593372,65.41,155.22,155.17,20.0]
[1724789595183,65.41,155.22,155.17,32.76650443]
[1724789597273,50.0,155.22,155.18,45.12549]
[1724789599083,50.0,155.22,155.17,12.76650443]
[1724789600884,50.0,155.22,155.18,0.25098]
[1724789601077,50.0,155.22,155.18,45.25098]
[1724789602687,56.4316,155.24,155.18,46.53962982]
[1724789603099,50.0,155.22,155.18,46.53962982]
[1724789604377,57.5543234,155.24,155.18,46.53962982]
[1724789604874,51.1227234,155.24,155.18,45.25098]
[1724789605080,50.0,155.24,155.18,45.25098]
[1724789605999,50.0,155.22,155.18,45.25098]
[1724789606303,50.0,155.22,155.16,12.76650443]